bitfinex/quotes_SOLUSD_20250930
["timestamp","ask_amount","ask_price","bid_price","bid_amount"]
[1759267668740,16.66507951,210.02,209.99,0.68]
[1759267669036,17.35507951,210.02,210.0,34.3]
[1759267669234,16.66507951,210.02,210.0,34.3]
[1759267671334,16.66507951,210.02,210.0,34.98]
[1759267671733,4.76122458,210.03,210.0,34.3]
[1759267671937,4.76122458,210.03,210.01,0.68]
[1759267672251,4.76122458,210.03,210.02,34.3]
[1759267672818,4.76077124,210.05,210.02,34.98]
[1759267673153,4.76077124,210.05,210.03,0.68]
[1759267673316,4.76077124,210.05,210.04,0.68]
[1759267673742,4.76077124,210.05,210.02,34.3]
[1759267673951,4.76077124,210.05,210.03,0.68]
[1759267674114,4.76077124,210.05,210.04,0.68]
[1759267674309,4.76077124,210.05,210.04,37.8]
[1759267675315,54.97955454,210.06,210.04,37.8]
[1759267675533,54.97955454,210.06,210.05,34.3]
[1759267675916,50.219009,210.06,210.05,34.98]
[1759267676644,54.9795536,210.06,210.05,34.98]
[1759267678926,50.219009,210.06,210.05,34.98]
[1759267679143,50.219009,210.06,210.05,127.67559401]
[1759267679315,50.219009,210.06,210.05,48.85991715]
[1759267679518,50.219009,210.06,210.05,48.83991715]
[1759267684045,50.219009,210.06,210.05,53.60068839]
[1759267684555,50.219009,210.06,210.05,132.70068839]
[1759267684852,50.219009,210.06,210.05,53.60068839]
[1759267685556,4.75914531,210.13,210.06,13.87991715]
[1759267685737,4.75873227,210.14,210.08,13.87991715]
[1759267686053,4.75873227,210.14,210.09,34.94]
[1759267686238,4.75873227,210.14,210.1,0.68]
[1759267686436,4.75873227,210.14,210.11,34.26]
[1759267687025,4.75850582,210.15,210.11,34.94]
[1759267687223,5.43850582,210.15,210.11,34.94]
[1759267688038,0.68,210.14,210.11,34.26]
[1759267688230,40.44048791,210.19,210.11,34.26]
[1759267688564,0.68,210.17,210.11,34.26]
[1759267688730,0.68,210.16,210.11,34.26]
[1759267688930,0.68,210.15,210.11,34.26]
[1759267689151,2.77072857,210.18,210.11,34.26]
[1759267689332,0.68,210.14,210.08,14.55991715]
[1759267689532,0.68,210.13,210.09,34.26]
[1759267689731,0.68,210.12,210.09,34.26]
[1759267690150,0.68,210.12,210.1,34.26]
[1759267690341,4.75941173,210.11,210.1,34.26]
[1759267691954,5.43941173,210.11,210.1,34.26]
[1759267692153,17.33794107,210.11,210.1,34.24]
[1759267699345,16.65794107,210.11,210.1,34.24]
[1759267699839,17.34794107,210.11,210.1,34.24]
[1759267700263,11.89852934,210.11,210.1,34.24]
[1759267701541,11.89852934,210.11,210.1,113.34]
[1759267704039,12.61852934,210.11,210.1,113.34]
[1759267704244,11.89852934,210.11,210.1,113.34]
[1759267711365,16.65794107,210.11,210.1,79.1]
[1759267711565,20.14866964,210.11,210.1,34.22]
[1759267712649,20.14866964,210.11,210.1,71.34]
[1759267713263,20.14866964,210.11,210.05,79.1]
[1759267713576,2.77072857,210.09,210.05,79.1]
[1759267713781,3.49072857,210.09,210.05,79.8]
[1759267714580,4.76009139,210.08,210.06,34.2]
[1759267715567,4.76009139,210.08,210.07,37.12]
[1759267717577,8.25081996,210.08,210.07,37.12]
[1759267718355,8.25081996,210.08,210.07,71.32]
[1759267720984,7.53081996,210.08,210.07,71.32]
[1759267721991,4.76009139,210.08,210.07,71.32]
[1759267725432,4.76009139,210.08,210.07,151.12]
[1759267726577,11.89993115,210.09,210.07,151.12]
[1759267726890,11.89993115,210.09,210.07,150.42]
[1759267727067,11.89993115,210.09,210.07,151.12]
[1759267728671,11.89993115,210.09,210.08,0.7]
[1759267729095,11.89993115,210.09,210.07,150.42]
[1759267729289,11.89993115,210.09,210.07,151.12]
[1759267729793,42.94669495,210.12,210.08,0.7]
[1759267730091,42.94669495,210.12,210.09,34.18]
[1759267730474,0.72,210.11,210.09,34.18]
[1759267731178,4.75963826,210.1,210.09,34.18]
[1759267733198,4.75941173,210.11,210.09,34.18]
[1759267735501,5.42941173,210.11,210.1,37.12]
[1759267740207,4.75941173,210.11,210.1,37.12]
[1759267740442,10.40965934,210.11,210.1,37.12]
[1759267741314,22.30818868,210.11,210.01,0.72]
[1759267741478,1.77251109,210.06,210.01,0.72]
[1759267741790,0.67,210.05,210.02,0.72]
[1759267742390,4.7609979,210.04,210.02,0.72]
[1759267742608,4.7609979,210.04,210.03,34.14]
[1759267744214,16.66349266,210.04,210.01,0.72]
[1759267744422,16.66349266,210.04,210.02,34.14]
[1759267744617,16.66349266,210.04,210.03,0.72]
[1759267744826,4.7609979,210.04,210.03,0.72]
[1759267745517,4.7609979,210.04,210.03,37.84]
[1759267745697,4.7609979,210.04,210.03,34.86]
[1759267745899,4.7609979,210.04,210.03,71.98]
[1759267746429,16.66190611,210.06,210.03,71.98]
[1759267746622,16.66190611,210.06,209.98,0.28432314]
[1759267746816,1.77251109,210.02,209.99,34.14]
[1759267747117,1.77251109,210.0,209.97,0.2]
[1759267747306,1.77251109,209.98,209.97,1e-08]
[1759267747712,2.44251109,209.98,209.93,0.2]
[1759267747928,1.77251109,209.94,209.93,0.2]
[1759267748312,6.53577678,209.94,209.93,34.34]
[1759267751203,7.20577678,209.94,209.93,34.34]
[1759267751525,7.20577678,209.94,209.93,0.2]
[1759267751710,7.20577678,209.94,209.93,34.34]
[1759267753024,42.93026948,209.94,209.87,0.72]
[1759267753221,1.77251109,209.89,209.87,0.72]
[1759267753420,1.77251109,209.89,209.85,20.8]
[1759267753421,1.77251109,209.89,209.85,21.52]
[1759267753624,1.77251109,209.89,209.86,0.72]
[1759267754228,1.77251109,209.88,209.86,0.72]
[1759267754530,2.44251109,209.89,209.83,19.12]
[1759267754917,1.77251109,209.88,209.83,19.12]
[1759267755117,16.67619591,209.88,209.83,19.12]
[1759267755312,17.34619591,209.88,209.83,19.12]
[1759267755517,18.448707,209.88,209.84,37.14]
[1759267755713,16.67619591,209.88,209.84,37.14]
[1759267755913,17.34619591,209.88,209.84,37.14]
[1759267756132,17.34619591,209.88,209.85,34.14]
[1759267756629,19.118707,209.88,209.85,34.14]
[1759267756807,17.34619591,209.88,209.85,34.14]
[1759267757327,1.77251109,209.86,209.84,37.14]
[1759267757530,1.77251109,209.86,209.85,34.14]
[1759267758127,16.7610509,209.86,209.85,34.14]
[1759267759225,21.52613238,209.86,209.85,34.14]
[1759267759922,21.52613238,209.86,209.84,37.14]
[1759267760114,2.45251109,209.85,209.84,37.14]
[1759267761222,7.21781964,209.85,209.84,71.28]
[1759267763134,21.52635945,209.85,209.84,71.28]
[1759267768148,19.75384836,209.85,209.84,71.28]
[1759267768321,21.52635945,209.85,209.84,71.28]
[1759267770941,19.75384836,209.85,209.84,71.28]
[1759267771151,21.52635945,209.85,209.84,71.28]
[1759267772742,4.76530855,209.85,209.84,71.28]
[1759267775347,6.53781964,209.85,209.84,71.28]
[1759267775735,14.30853981,209.85,209.84,71.28]
[1759267775939,4.76516983,209.86,209.84,71.9]
[1759267776250,11.91156851,209.88,209.85,0.62]
[1759267776425,11.91156851,209.88,209.86,34.12]
[1759267779637,0.72,209.87,209.84,37.14]
[1759267779866,1.77251109,209.85,209.84,37.14]
[1759267780028,2.49251109,209.85,209.84,71.26]
[1759267780236,7.25781964,209.85,209.84,71.26]
[1759267783267,5.48530855,209.85,209.84,71.26]
[1759267784058,7.25781964,209.85,209.84,71.26]
[1759267784358,8.26134791,209.85,209.84,71.26]
[1759267786162,22.5705702,209.85,209.84,71.26]
[1759267794084,19.79453084,209.85,209.84,71.26]
[1759267794248,22.5705702,209.85,209.84,71.26]
[1759267794449,22.5705702,209.85,209.79,0.1]
[1759267794450,34.48384158,209.85,209.77,1e-08]
[1759267794697,2.77603936,209.78,209.77,1e-08]
[1759267795158,17.7914069,209.78,209.73,37.26]
[1759267795348,2.77603936,209.75,209.73,37.26]
[1759267795550,2.77603936,209.75,209.74,34.08]
[1759267796077,14.31468448,209.75,209.74,34.08]
[1759267796377,19.08226493,209.75,209.74,34.08]
[1759267796584,19.08226493,209.75,209.73,37.26]
[1759267796760,19.08226493,209.75,209.74,34.08]
[1759267799275,4.76758045,209.75,209.74,34.08]
[1759267801186,4.76758045,209.75,209.64,37.28]
[1759267801187,20.8,209.73,209.64,37.28]
[1759267801486,2.77603936,209.67,209.64,37.28]
[1759267801775,2.77603936,209.68,209.64,37.9]
[1759267802274,21.5,209.72,209.63,0.1]
[1759267802275,20.8,209.65,209.63,0.1]
[1759267802478,20.8,209.64,209.58,0.1]
[1759267802679,20.8,209.63,209.59,34.08]
[1759267802979,20.8,209.63,209.57,74.34]
[1759267802980,0.7,209.62,209.57,74.34]
[1759267803161,23.57603936,209.58,209.57,74.34]
[1759267803367,20.8,209.58,209.57,74.34]
[1759267803579,23.57603936,209.58,209.57,74.34]
[1759267803875,2.77603936,209.58,209.57,74.34]
[1759267804171,16.69847327,209.6,209.57,108.42]
[1759267804372,17.39847327,209.6,209.57,108.42]
[1759267804881,2.77603936,209.58,209.57,108.42]
[1759267805453,17.39847327,209.6,209.57,108.42]
[1759267805657,17.10371326,209.58,209.57,108.42]
[1759267806172,15.0276739,209.58,209.57,108.44]
[1759267806365,14.3276739,209.58,209.57,108.44]
[1759267806751,14.3276739,209.58,209.57,109.06]
[1759267807154,7.54657652,209.62,209.57,109.06]
[1759267807960,4.76897611,209.69,209.6,20.8]
[1759267808163,4.76897611,209.69,209.61,34.72]
[1759267808361,4.76897611,209.69,209.62,0.62]
[1759267808669,4.76897611,209.69,209.63,34.1]
[1759267809066,4.76897611,209.69,209.64,0.62]
[1759267809259,4.76897611,209.69,209.65,34.76]
[1759267809667,11.92104831,209.72,209.66,0.62]
[1759267809852,4.76871061,209.71,209.67,34.14]
[1759267810253,11.92104831,209.72,209.67,34.14]
[1759267810254,16.68931075,209.72,209.67,34.14]
[1759267810872,16.68931075,209.72,209.67,34.76]
[1759267811257,4.76826244,209.72,209.68,0.62]
[1759267811463,4.76826244,209.72,209.69,0.62]
[1759267811660,4.76826244,209.72,209.7,34.12]
[1759267811873,3.47603936,209.71,209.7,34.12]
[1759267812375,5.46848981,209.71,209.7,34.12]
[1759267812566,8.24452917,209.71,209.7,34.12]
[1759267814073,4.76848981,209.71,209.7,34.12]
[1759267814266,7.54452917,209.71,209.7,34.12]
[1759267814768,4.76848981,209.71,209.7,34.12]
[1759267814970,8.24452917,209.71,209.7,34.12]
[1759267815561,5.46848981,209.71,209.7,34.12]
[1759267815776,20.16575371,209.71,209.63,0.62]
[1759267815972,2.77603936,209.66,209.63,0.62]
[1759267816178,2.77603936,209.66,209.61,0.62]
[1759267816476,4.76985451,209.65,209.62,0.62]
[1759267817071,4.76985451,209.65,209.63,34.12]
[1759267817863,7.54589387,209.65,209.63,34.12]
[1759267818270,8.21589387,209.65,209.63,34.12]
[1759267819457,7.5461214,209.64,209.63,34.12]
[1759267820178,19.47132651,209.64,209.6,0.62]
[1759267820371,2.77603936,209.63,209.61,37.2]
[1759267820574,3.44603936,209.63,209.61,37.2]
[1759267820966,2.77603936,209.63,209.61,37.2]
[1759267821161,0.67,209.62,209.61,37.2]
[1759267821365,4.77053716,209.62,209.61,37.2]
[1759267821573,4.77053716,209.62,209.61,71.3]
[1759267821875,5.44053716,209.62,209.61,71.3]
[1759267822178,8.21657652,209.62,209.61,71.3]
[1759267822964,5.44053716,209.62,209.61,71.3]
[1759267823171,8.21657652,209.62,209.61,71.3]
[1759267823371,5.44053716,209.62,209.61,71.3]
[1759267823577,4.77053716,209.62,209.61,71.3]
[1759267825583,4.77030959,209.63,209.61,71.3]
[1759267825885,7.54634895,209.63,209.61,71.3]
[1759267826588,8.23634895,209.63,209.61,71.3]
[1759267828272,5.46030959,209.63,209.61,71.3]
[1759267828674,3.46603936,209.62,209.61,37.2]
[1759267828877,3.46603936,209.62,209.61,71.3]
[1759267829872,8.23657652,209.62,209.61,71.3]
[1759267835683,5.46053716,209.62,209.61,71.3]
[1759267835983,8.23657652,209.62,209.61,71.3]
[1759267837570,4.77053716,209.62,209.61,71.3]
[1759267840413,8.23657652,209.62,209.61,71.3]
[1759267840775,7.54657652,209.62,209.61,71.3]
[1759267842978,8.23657652,209.62,209.61,71.3]
[1759267844085,4.77053716,209.62,209.61,71.3]
[1759267844382,6.55097123,209.62,209.61,71.3]
[1759267844903,4.77053716,209.62,209.61,71.3]
[1759267845100,6.55097123,209.62,209.61,71.3]
[1759267845598,4.77053716,209.62,209.61,71.3]
[1759267846580,4.77032659,209.63,209.61,71.3]
[1759267846787,4.76962701,209.66,209.61,71.3]
[1759267847216,16.69342549,209.67,209.61,71.3]
[1759267851393,18.47385956,209.67,209.61,71.3]
[1759267852006,1.78043407,209.66,209.61,71.3]
[1759267852198,1.78043407,209.62,209.61,37.2]
[1759267852391,2.47043407,209.62,209.61,71.3]
[1759267854314,7.24097123,209.62,209.61,71.3]
[1759267860321,7.26097123,209.62,209.52,20.8]
[1759267860556,7.26097123,209.62,209.53,37.2]
[1759267860557,1.78043407,209.58,209.53,37.2]
[1759267860706,2.49043407,209.58,209.53,37.2]
[1759267861034,1.78043407,209.58,209.53,37.2]
[1759267861709,1.78043407,209.58,209.54,34.1]
[1759267861911,19.87669514,209.62,209.54,34.1]
[1759267862114,16.69688006,209.62,209.57,20.8]
[1759267862321,16.69688006,209.62,209.58,34.1]
[1759267863236,11.9263429,209.62,209.58,34.1]
[1759267863730,4.77030959,209.63,209.58,34.1]
[1759267865027,16.69608357,209.63,209.58,34.1]
[1759267865509,4.77008204,209.64,209.58,34.1]
[1759267866822,16.69401408,209.66,209.58,34.1]
[1759267867022,16.69401408,209.66,209.58,38.87134194]
[1759267867221,4.76962701,209.66,209.59,0.28432314]
[1759267867413,4.76962701,209.66,209.61,20.8]
[1759267867737,4.76962701,209.66,209.62,34.1]
[1759267868316,4.76917207,209.68,209.62,34.1]
[1759267868519,3.17981508,209.7,209.62,34.1]
[1759267868520,7.94873383,209.7,209.65,20.8]
[1759267868730,7.94873383,209.7,209.66,34.08]
[1759267868731,4.76891875,209.7,209.66,34.08]
[1759267868930,4.76891875,209.7,209.67,34.08]
[1759267870943,11.92116896,209.72,209.67,34.08]
[1759267871441,12.63116896,209.72,209.67,34.08]
[1759267872346,17.3994314,209.72,209.67,34.08]
[1759267873523,1.78043407,209.68,209.67,34.08]
[1759267873731,2.49043407,209.68,209.67,34.08]
[1759267874441,7.25960614,209.68,209.67,34.08]
[1759267874638,4.76917207,209.68,209.67,34.08]
[1759267875569,5.47917207,209.68,209.67,34.08]
[1759267875740,4.76917207,209.68,209.67,34.08]
[1759267876845,12.63201949,209.7,209.67,34.08]
[1759267876846,4.76894463,209.69,209.67,34.08]
[1759267877226,5.47894463,209.69,209.67,34.08]
[1759267877834,4.76894463,209.69,209.67,34.08]
[1759267878037,5.48894463,209.69,209.67,34.08]
[1759267878352,4.76894463,209.69,209.67,34.08]
[1759267878855,16.6907367,209.7,209.67,34.08]
[1759267879247,4.76871721,209.7,209.67,113.18]
[1759267879645,4.76871721,209.7,209.67,34.08]
[1759267879829,4.76826244,209.72,209.67,34.08]
[1759267881252,4.76803509,209.73,209.67,34.08]
[1759267881944,4.76803509,209.73,209.67,38.8493945]
[1759267882143,4.76803509,209.73,209.67,34.08]
[1759267883525,16.68744746,209.74,209.67,34.08]
[1759267884152,16.68744746,209.74,209.67,38.84931211]
[1759267884345,4.76780776,209.74,209.68,13.87991715]
[1759267884649,5.44667143,209.79,209.73,0.28432314]
[1759267884848,4.76667143,209.79,209.74,34.06]
[1759267885022,5.44667143,209.79,209.74,34.06]
[1759267885420,4.76667143,209.79,209.74,34.06]
[1759267885648,11.91630744,209.8,209.74,34.06]
[1759267885649,16.68275167,209.8,209.74,34.06]
[1759267886233,17.36275167,209.8,209.74,34.06]
[1759267887948,16.68275167,209.8,209.74,34.06]
[1759267890260,16.68275167,209.8,209.75,34.06]
[1759267890444,4.76598989,209.82,209.75,34.06]
[1759267890646,4.76598989,209.82,209.76,0.28432314]
[1759267890843,5.44598989,209.82,209.76,13.87991715]
[1759267891336,4.76598989,209.82,209.76,13.87991715]
[1759267891772,4.9657742,209.83,209.79,20.8]
[1759267892054,1.78043407,209.8,209.66,116.3]
[1759267892358,4.76848981,209.71,209.68,0.68]
[1759267892656,4.76848981,209.71,209.68,0.96432314]
[1759267892969,19.15014842,209.71,209.67,34.06]
[1759267893631,18.47014842,209.71,209.67,34.06]
[1759267893831,19.15014842,209.71,209.67,54.86]
[1759267895759,4.76848981,209.71,209.67,54.86]
[1759267895961,4.76848981,209.71,209.67,55.54]
[1759267897175,1.78043407,209.68,209.66,37.2]
[1759267897470,2.46043407,209.67,209.66,37.2]
[1759267897681,2.46043407,209.67,209.66,71.24]
[1759267898538,0.68,209.67,209.66,71.24]
[1759267898762,2.46043407,209.67,209.66,71.24]
[1759267898960,7.2298336,209.67,209.66,71.24]
[1759267899260,39.95333243,209.67,209.55,0.68]
[1759267899450,1.78043407,209.63,209.55,0.68]
[1759267899651,0.68,209.62,209.55,0.68]
[1759267900464,0.68,209.62,209.56,34.04]
[1759267901164,0.68,209.62,209.52,17.38100759]
[1759267901165,1.78043407,209.58,209.51,0.68]
[1759267901367,5.45076475,209.61,209.52,34.04]
[1759267901368,1.78043407,209.56,209.52,34.04]
[1759267901567,2.46043407,209.56,209.53,34.04]
[1759267902072,1.78043407,209.57,209.53,34.04]
[1759267902573,0.68,209.59,209.53,34.04]
[1759267902751,1.78043407,209.58,209.53,34.04]
[1759267902952,0.68,209.57,209.53,34.04]
[1759267903263,0.68,209.56,209.53,34.04]
[1759267903469,4.77167533,209.57,209.53,34.04]
[1759267905348,0.68,209.56,209.53,34.04]
[1759267905549,0.68,209.55,209.54,37.2]
[1759267905771,16.70086366,209.57,209.54,37.2]
[1759267905968,0.68,209.56,209.54,37.2]
[1759267906380,0.68,209.55,209.54,37.2]
[1759267906575,16.70086366,209.57,209.54,37.2]
[1759267906879,4.77099236,209.6,209.55,0.68]
[1759267907051,4.77099236,209.6,209.56,34.06]
[1759267907257,0.68,209.59,209.56,34.06]
[1759267907480,4.77099236,209.6,209.56,34.74]
[1759267907690,0.68,209.59,209.56,34.06]
[1759267907850,0.68,209.58,209.56,34.06]
[1759267908055,0.68,209.57,209.56,34.06]
[1759267909084,5.45167533,209.57,209.56,34.06]
[1759267909958,20.16391316,209.57,209.56,34.06]
[1759267910361,20.16391316,209.57,209.54,37.2]
[1759267910570,2.7830495,209.55,209.54,37.2]
[1759267910887,3.4630495,209.55,209.54,37.2]
[1759267911059,8.23518025,209.55,209.54,37.2]
[1759267911258,5.45213075,209.55,209.54,37.2]
[1759267911459,5.45213075,209.55,209.54,71.26]
[1759267911882,4.77213075,209.55,209.54,71.26]
[1759267912271,5.45213075,209.55,209.54,71.26]
[1759267912691,5.45213075,209.55,209.54,37.2]
[1759267912872,5.45213075,209.55,209.54,71.26]
[1759267913096,17.38131908,209.55,209.54,71.26]
[1759267913261,16.70131908,209.55,209.54,71.26]
[1759267913591,5.46213075,209.55,209.54,71.26]
[1759267913955,8.24518025,209.55,209.54,71.26]
[1759267914160,8.24518025,209.55,209.54,34.06]
[1759267914358,20.17550714,209.55,209.43,0.7]
[1759267914575,20.8,209.52,209.43,0.7]
[1759267914779,20.8,209.51,209.4,0.7]
[1759267914969,2.7830495,209.5,209.4,0.7]
[1759267915165,16.70803894,209.48,209.4,21.5]
[1759267915368,17.39803894,209.48,209.4,21.5]
[1759267915560,17.39803894,209.48,209.41,71.48]
[1759267915760,20.18108844,209.48,209.41,72.18]
[1759267917587,3.4730495,209.47,209.41,37.2]
[1759267917772,3.4730495,209.47,209.42,34.26]
[1759267918079,3.4730495,209.46,209.42,34.26]
[1759267918283,16.70803894,209.48,209.41,37.2]
[1759267918284,0.69,209.45,209.41,37.2]
[1759267918579,21.49,209.44,209.42,34.28]
[1759267918777,0.69,209.46,209.42,34.28]
[1759267918981,37.9189394,209.47,209.42,34.28]
[1759267919168,16.71043207,209.45,209.42,34.28]
[1759267919484,17.40043207,209.45,209.42,34.28]
[1759267920188,0.69,209.44,209.42,34.28]
[1759267920368,0.69,209.44,209.41,37.2]
[1759267920684,0.69,209.44,209.42,34.28]
[1759267921382,4.77486511,209.43,209.42,34.28]
[1759267922287,5.46486511,209.43,209.42,34.28]
[1759267922591,4.77486511,209.43,209.42,34.28]
[1759267923286,4.77463712,209.44,209.42,34.28]
[1759267923582,5.46463712,209.44,209.42,34.28]
[1759267924570,20.8,209.47,209.42,34.98]
[1759267924775,37.9189394,209.47,209.42,34.98]
[1759267925086,4.77420867,209.46,209.42,34.28]
[1759267925386,4.77349754,209.49,209.43,0.7]
[1759267925565,19.10733255,209.49,209.44,34.32]
[1759267925763,21.89038205,209.49,209.44,34.32]
[1759267926062,0.69,209.48,209.44,34.32]
[1759267926287,4.77395331,209.47,209.44,34.32]
[1759267926868,4.77349754,209.49,209.44,34.32]
[1759267927064,0.69,209.48,209.44,34.32]
[1759267927276,16.70724139,209.49,209.44,34.32]
[1759267927568,17.39724139,209.49,209.44,34.32]
[1759267927880,5.46349754,209.49,209.44,34.32]
[1759267928267,5.46349754,209.49,209.44,35.02]
[1759267929386,17.39724139,209.49,209.44,35.02]
[1759267929986,2.7830495,209.5,209.45,0.7]
[1759267929987,4.77329288,209.5,209.45,0.7]
[1759267930175,4.77329288,209.5,209.46,0.7]
[1759267930377,2.7830495,209.51,209.47,34.28]
[1759267930569,3.4730495,209.51,209.47,34.28]
[1759267930768,0.69,209.51,209.47,34.28]
[1759267932275,3.4730495,209.51,209.47,34.28]
[1759267933086,4.77326968,209.5,209.47,34.28]
[1759267934465,16.7064439,209.5,209.47,34.28]
[1759267935481,11.93317422,209.5,209.48,37.22]
[1759267937987,4.77304185,209.51,209.48,37.91]
[1759267938293,4.77278786,209.53,209.49,0.69]
[1759267938481,4.77221587,209.55,209.5,34.87]
[1759267938678,4.77221587,209.55,209.51,0.69]
[1759267938880,4.77221587,209.55,209.52,0.69]
[1759267939075,11.92792017,209.6,209.53,34.87]
[1759267939269,15.40096967,209.6,209.54,34.18]
[1759267939587,20.17196203,209.6,209.54,34.87]
[1759267939888,17.38891253,209.6,209.54,34.87]
[1759267940271,16.69891253,209.6,209.54,34.87]
[1759267940478,16.69891253,209.6,209.55,0.69]
[1759267940680,16.69891253,209.6,209.56,0.69]
[1759267940884,16.69891253,209.6,209.57,34.85]
[1759267940885,4.77099236,209.6,209.57,34.85]
[1759267941191,0.69,209.62,209.57,34.85]
[1759267941192,4.77076475,209.61,209.57,34.85]
[1759267941672,4.77076475,209.61,209.58,0.69]
[1759267943177,16.6964955,209.63,209.58,0.69]
[1759267943677,4.77030959,209.63,209.57,34.16]
[1759267943891,4.77030959,209.63,209.59,0.72]
[1759267944098,12.63439895,209.66,209.6,0.72]
[1759267944393,4.76985451,209.65,209.61,34.14]
[1759267944594,4.76985451,209.65,209.62,0.72]
[1759267944991,4.76939953,209.67,209.63,0.72]
[1759267947201,0.71,209.67,209.61,34.86]
[1759267948179,2.7830495,209.62,209.61,34.14]
[1759267948379,2.7830495,209.62,209.61,71.36]
[1759267948380,3.4930495,209.62,209.61,71.36]
[1759267948816,3.4930495,209.62,209.51,13.59559401]
[1759267949022,2.7830495,209.57,209.52,0.72]
[1759267949182,4.77190303,209.56,209.52,0.72]
[1759267949579,4.77190303,209.56,209.51,0.28432314]
[1759267949774,0.71,209.55,209.48,0.72]
[1759267949988,0.71,209.55,209.49,34.1]
[1759267951193,4.77235849,209.54,209.49,34.1]
[1759267951398,4.77235849,209.54,209.49,34.82]
[1759267951592,16.70325473,209.54,209.49,34.82]
[1759267952901,4.77235849,209.54,209.5,0.72]
[1759267953109,4.77235849,209.54,209.51,0.72]
[1759267953288,17.41086366,209.57,209.51,0.72]
[1759267953493,20.19391316,209.57,209.49,34.82]
[1759267953891,20.19391316,209.57,209.5,0.72]
[1759267954588,17.41086366,209.57,209.5,1.00432314]
[1759267955508,17.41086366,209.57,209.51,37.22]
[1759267956704,17.41086366,209.57,209.51,37.94]
[1759267957003,16.70086366,209.57,209.51,37.94]
[1759267957409,16.70086366,209.57,209.51,37.22]
[1759267957410,4.77167533,209.57,209.51,37.22]
[1759267957595,4.77167533,209.57,209.52,0.72]
[1759267957795,15.42088784,209.6,209.53,34.8]
[1759267958126,4.77122,209.59,209.54,0.72]
[1759267958908,16.6988307,209.6,209.54,0.72]
[1759267959109,0.71,209.59,209.54,0.72]
[1759267960503,4.77099236,209.6,209.55,0.72]
[1759267960713,4.77099236,209.6,209.56,0.72]
[1759267960908,4.77099236,209.6,209.57,34.08]
[1759267961093,4.77076475,209.61,209.57,34.08]
[1759267961292,5.48076475,209.61,209.57,34.08]
[1759267961493,5.48076475,209.61,209.58,37.22]
[1759267961690,4.77050767,209.63,209.58,37.94]
[1759267962013,5.48050767,209.63,209.58,37.94]
[1759267963900,17.40628165,209.63,209.58,37.94]
[1759267964890,16.69628165,209.63,209.58,37.94]
[1759267965091,17.40628165,209.63,209.58,37.94]
[1759267967216,4.77050767,209.63,209.59,0.72]
[1759267968198,4.77008204,209.64,209.59,0.72]
[1759267968397,5.48008204,209.64,209.59,0.72]
[1759267969006,4.77008204,209.64,209.6,0.72]
[1759267969205,4.77008204,209.64,209.61,34.08]
[1759267969795,5.48008204,209.64,209.61,34.08]
[1759267970200,16.69391955,209.66,209.61,34.08]
[1759267970517,0.71,209.65,209.61,34.08]
[1759267972026,16.69391955,209.66,209.62,1.00432314]
[1759267972027,4.76962701,209.66,209.62,1.00432314]
[1759267972314,12.63281281,209.69,209.63,0.72]
[1759267972529,4.76917207,209.68,209.64,34.08]
[1759267972711,4.76917207,209.68,209.64,34.8]
[1759267973148,4.76917207,209.68,209.65,0.68]
[1759267973492,4.76917207,209.68,209.64,34.08]